Workbook

Sheet Status i din kommune
C4: Kære læser
C5: Dette beregningsværktøj er DI's vejledning til at se, hvordan din kommune klarer sig i forhold til at samarbejde med private virksomheder om kommunale opgaver.
C6: Private virksomheder kan bidrage med erfaring, know-how, stordriftsfordele testet på et internationalt marked og meget andet. Alt sammen til gavn for din kommunes økonomi og leveringen af kommunale ydelser.
C7: Sådan fungerer det:
C8: Arket er inddelt i to sektioner. Den første fane "Status i din kommune", som du befinder dig i nu, går i dybden med netop din kommune, og hvordan den klarer sig. Den anden fane "Sammenligning med andre" viser, hvordan din kommune klarer sig sammenlignet med andre kommuner. Du kan selv vælge, hvilke kommuner, som du ønsker at sammenligne med. Beregninger er foretaget på baggrund af kommunernes regnskaber modtaget af Danmarks Statistik og kommunernes egne vundne bud modtaget fra Indenrigs- og Boligministeriet. Nøgletal herfra til beregning af Indikatoren-for-Konkurrenceudsættelse er angivet i fanen "Grunddata".
C12: Vælg din kommune her: | D12: Albertslund
C15: Hvordan kommer jeg i gang?
C16: Forhåbentlig giver beregningerne dig nogle spændende resultater, og viser potentialer for at skabe mere samarbejde med virksomhederne. Du kan se mere om, hvordan andre kommuner har samarbejdet med private virksomheder til gavn for borgere og kommunerne ved at læse vores gode eksempler her.
C18: =HYPERLINK(VLOOKUP('Status i din kommune'!D12,Grunddata_links!A:B,2,FALSE),"Hvis du vil blive klogere på din egen kommunes udvikling, finder du mere information her.") -> Hvis du vil blive klogere på din egen kommunes udvikling, finder du mere information her.
C22: Vi har også samlet en række anbefalinger med gode råd, som du kan læse her.
C25: Hvis du holder musen over opgaveområderne og nøgletallene, kan du læse en uddybende forklaring.
C28: Hvis du har spørgsmål eller ønsker at vide mere om, hvordan du i din kommune kan udbrede viden om det frie valg, skal du endelig ikke tøve med at kontakte os
C30: Christian Broholm Andersen
C31: Konsulent, Offentlig/Privat og velfærdspolitik
C32: Direkte: +45 3377 3516
C33: Mobil: +45 5218 5959
C34: E-mail: chra@di.dk
D41: Tabel 1 - Din kommunes konkurrenceudsættelse i 2021
E42: Udbudte opgaver, mio. kr. | F42: Udbudsegnede opgaver, mio. kr. | G42: IKU, pct. | H42: Best practice, pct. | I42: Landsgennemsnit, pct. | J42: Mulige gevinster ved løft til best practice (10-15 pct.), mio. kr.
D43: Byudvikling | E43: =VLOOKUP($D$12,Table1[#All],6,FALSE)/1000 -> 27.303 | F43: =VLOOKUP($D$12,Table1[#All],7,FALSE)/1000 -> 118.21 | G43: =VLOOKUP($D$12,Table1[#All],8,FALSE) -> 23.09703071 | H43: 64.04131246 | I43: 39.31648729 | J43: =IF(F43*H43/100-E43<0,"",ROUND((F43*H43/100-E43)*0.1,1))&"-"&IF(F43*H43/100-E43<0,"",ROUND((F43*H43/100-E43)*0.15,1)) -> 4,8-7,3
D44: Trafik og infrastruktur | E44: =VLOOKUP($D$12,Table1[#All],9,FALSE)/1000 -> 26.403 | F44: =VLOOKUP($D$12,Table1[#All],10,FALSE)/1000 -> 66.249 | G44: =VLOOKUP($D$12,Table1[#All],11,FALSE) -> 39.85418648 | H44: 88.02369998 | I44: 58.44003166 | J44: =IF(F44*H44/100-E44<0,"",ROUND((F44*H44/100-E44)*0.1,1))&"-"&IF(F44*H44/100-E44<0,"",ROUND((F44*H44/100-E44)*0.15,1)) -> 3,2-4,8
D45: Undervisning og kultur | E45: =VLOOKUP($D$12,Table1[#All],12,FALSE)/1000 -> 41.27 | F45: =VLOOKUP($D$12,Table1[#All],13,FALSE)/1000 -> 220.195 | G45: =VLOOKUP($D$12,Table1[#All],14,FALSE) -> 18.74247826 | H45: 43.33466695 | I45: 26.98850782 | J45: =IF(F45*H45/100-E45<0,"",ROUND((F45*H45/100-E45)*0.1,1))&"-"&IF(F45*H45/100-E45<0,"",ROUND((F45*H45/100-E45)*0.15,1)) -> 5,4-8,1
D46: Sundhed | E46: =VLOOKUP($D$12,Table1[#All],15,FALSE)/1000 -> 8.642 | F46: =VLOOKUP($D$12,Table1[#All],16,FALSE)/1000 -> 43.267 | G46: =VLOOKUP($D$12,Table1[#All],17,FALSE) -> 19.97365197 | H46: 30.75817384 | I46: 14.29621379 | J46: 0,5-0,7
D47: Sociale opgaver | E47: =VLOOKUP($D$12,Table1[#All],18,FALSE)/1000 -> 283.405 | F47: =VLOOKUP($D$12,Table1[#All],19,FALSE)/1000 -> 918.066 | G47: =VLOOKUP($D$12,Table1[#All],20,FALSE) -> 30.86978496 | H47: 40.22065632 | I47: 25.89509491 | J47: 8,6-12,9
D48: Administration | E48: =VLOOKUP($D$12,Table1[#All],21,FALSE)/1000 -> 45.389 | F48: =VLOOKUP($D$12,Table1[#All],22,FALSE)/1000 -> 244.308 | G48: =VLOOKUP($D$12,Table1[#All],23,FALSE) -> 18.57859751 | H48: 29.64174883 | I48: 20.82513745 | J48: =IF(F48*H48/100-E48<0,"",ROUND((F48*H48/100-E48)*0.1,1))&"-"&IF(F48*H48/100-E48<0,"",ROUND((F48*H48/100-E48)*0.15,1)) -> 2,7-4,1
D49: Samlet | E49: =VLOOKUP($D$12,Table1[#All],3,FALSE)/1000 -> 432.412 | F49: =VLOOKUP($D$12,Table1[#All],4,FALSE)/1000 -> 1610.295 | G49: =VLOOKUP($D$12,Table1[#All],5,FALSE) -> 26.85296793 | H49: 41.83240036 | I49: 26.91389816 | J49: =SUM(IF(F43*H43/100-E43<0,0,ROUND((F43*H43/100-E43)*0.1,1)),IF(F44*H44/100-E44<0,0,ROUND((F44*H44/100-E44)*0.1,1)),IF(F45*H45/100-E45<0,0,ROUND((F45*H45/100-E45)*0.1,1)),IF(F46*H46/100-E46<0,0,ROUND((F46*H46/100-E46)*0.1,1)),IF(F47*H47/100-E47<0,0,ROUND((F47*H47/100-E47)*0.1,1)),IF(F48*H48/100-E48<0,0,ROUND((F48*H48/100-E48)*0.1,1)))&"-"&SUM(IF(F43*H43/100-E43<0,0,ROUND((F43*H43/100-E43)*0.15,1)),IF(F44*H44/100-E44<0,0,ROUND((F44*H44/100-E44)*0.15,1)),IF(F45*H45/100-E45<0,0,ROUND((F45*H45/100-E45)*0.15,1)),IF(F46*H46/100-E46<0,0,ROUND((F46*H46/100-E46)*0.15,1)),IF(F47*H47/100-E47<0,0,ROUND((F47*H47/100-E47)*0.15,1)),IF(F48*H48/100-E48<0,0,ROUND((F48*H48/100-E48)*0.15,1))) -> 25,2-37,9
D50: Kilde: Danmarks Statistik, Indenrigs- og Boligministeriet samt DI-beregninger.
C115: Hjælpetabel til potentialefigurer
C116: Hjælpelinje | D116: Potentiale ved løft til best practice
A117: Samlet | C117: 0 | D117: =SUM(D118:D123) -> 252.0042998
A118: Administration | C118: =C119+D119 -> 224.9761361 | D118: =IF(F48*H48/100-E48<0,0,F48*H48/100-E48) -> 27.02816373 | E118: 0
A119: Sociale opgaver | C119: 139.1289654 | D119: =IF(F47*H47/100-E47<0,0,F47*H47/100-E47) -> 85.84717065 | E119: 0
A120: Sundhed | C120: 134.4628264 | D120: =IF(F46*H46/100-E46<0,0,F46*H46/100-E46) -> 4.666139076 | E120: 0
A121: Undervisning og kultur | C121: =C122+D122 -> 80.31205646 | D121: =IF(F45*H45/100-E45<0,0,F45*H45/100-E45) -> 54.15076989 | E121: 0
A122: Trafik og infrastruktur | C122: =C123+D123 -> 48.40023546 | D122: =IF(F44*H44/100-E44<0,0,F44*H44/100-E44) -> 31.911821 | E122: 0
A123: Byudvikling | C123: 0 | D123: =IF(F43*H43/100-E43<0,0,F43*H43/100-E43) -> 48.40023546 | E123: 0
E124: 0

Sheet Sammenligning med andre
C2: I dette ark har du mulighed for at se nærmere på din egen kommune sammenholdt med tre andre efter dit eget valg.
C4: Vælg de tre kommuner her: | D4: Gribskov
D5: Holbæk
D6: Ballerup
C8: Hvis du holder musen over opgaveområderne og nøgletallene, kan du læse en uddybende forklaring.
D12: Tabel 2 - Din egen og udvalgte tre kommuners konkurrenceudsættelse fordelt på opgaveområder i 2021
D14: IKU, pct. | E14: ='Status i din kommune'!D12 -> Albertslund | F14: =D4 -> Gribskov | G14: =D5 -> Holbæk | H14: =D6 -> Ballerup | I14: Best practice
D15: Byudvikling | E15: =VLOOKUP('Status i din kommune'!D12,Table1[#All],8,FALSE) -> 23.09703071 | F15: =VLOOKUP($D$4,Table1[#All],8,FALSE) -> 67.17761043 | G15: =VLOOKUP($D$5,Table1[#All],8,FALSE) -> 45.79347227 | H15: =VLOOKUP($D$6,Table1[#All],8,FALSE) -> 33.35124485 | I15: 64.04131246
D16: Trafik og infrastruktur | E16: =VLOOKUP('Status i din kommune'!D12,Table1[#All],11,FALSE) -> 39.85418648 | F16: =VLOOKUP($D$4,Table1[#All],11,FALSE) -> 90.79281184 | G16: =VLOOKUP($D$5,Table1[#All],11,FALSE) -> 58.85503478 | H16: =VLOOKUP($D$6,Table1[#All],11,FALSE) -> 72.19990682 | I16: 88.02369998
D17: Undervisning og kultur | E17: =VLOOKUP('Status i din kommune'!D12,Table1[#All],14,FALSE) -> 18.74247826 | F17: =VLOOKUP($D$4,Table1[#All],14,FALSE) -> 38.3069514 | G17: =VLOOKUP($D$5,Table1[#All],14,FALSE) -> 32.87240522 | H17: =VLOOKUP($D$6,Table1[#All],14,FALSE) -> 15.53030574 | I17: 43.33466695
D18: Sundhed | E18: =VLOOKUP('Status i din kommune'!D12,Table1[#All],17,FALSE) -> 19.97365197 | F18: =VLOOKUP($D$4,Table1[#All],17,FALSE) -> 40.15779891 | G18: =VLOOKUP($D$5,Table1[#All],17,FALSE) -> 11.00826175 | H18: =VLOOKUP($D$6,Table1[#All],17,FALSE) -> 15.10182768 | I18: 30.75817384
D19: Sociale opgaver | E19: =VLOOKUP('Status i din kommune'!D12,Table1[#All],20,FALSE) -> 30.86978496 | F19: =VLOOKUP($D$4,Table1[#All],20,FALSE) -> 62.81179181 | G19: =VLOOKUP($D$5,Table1[#All],20,FALSE) -> 40.08104018 | H19: =VLOOKUP($D$6,Table1[#All],20,FALSE) -> 25.39905025 | I19: 40.22065632
D20: Administration | E20: =VLOOKUP('Status i din kommune'!D12,Table1[#All],23,FALSE) -> 18.57859751 | F20: =VLOOKUP($D$4,Table1[#All],23,FALSE) -> 24.58624121 | G20: =VLOOKUP($D$5,Table1[#All],23,FALSE) -> 23.83432436 | H20: =VLOOKUP($D$6,Table1[#All],23,FALSE) -> 25.93308642 | I20: 29.64174883
D21: Samlet | E21: =VLOOKUP('Status i din kommune'!D12,Table1[#All],5,FALSE) -> 26.85296793 | F21: =VLOOKUP($D$4,Table1[#All],5,FALSE) -> 53.82076853 | G21: =VLOOKUP($D$5,Table1[#All],5,FALSE) -> 36.48237659 | H21: =VLOOKUP($D$6,Table1[#All],5,FALSE) -> 25.22594387 | I21: 41.83240036
D22: Kilde: Danmarks Statistik, Indenrigs- og Boligministeriet samt DI-beregninger.
D26: Tabel 3 - Din egen og udvalgte tre kommuners konkurrenceudsættelse samlet set i 2021
E27: =E14 -> Albertslund | F27: =F14 -> Gribskov | G27: Holbæk | H27: Ballerup
D28: Udbudte opgaver, mio. kr. | E28: =VLOOKUP(E$27,Grunddata!$1:$1048576,3,FALSE)/1000 -> 432.412 | F28: =VLOOKUP(F$27,Grunddata!$1:$1048576,3,FALSE)/1000 -> 964.67 | G28: =VLOOKUP(G$27,Grunddata!$1:$1048576,3,FALSE)/1000 -> 1081.28 | H28: =VLOOKUP(H$27,Grunddata!$1:$1048576,3,FALSE)/1000 -> 678.004
D29: Udbudsegnede opgaver, mio. kr. | E29: =VLOOKUP(E$27,Grunddata!$1:$1048576,4,FALSE)/1000 -> 1610.295 | F29: =VLOOKUP(F$27,Grunddata!$1:$1048576,4,FALSE)/1000 -> 1792.375 | G29: =VLOOKUP(G$27,Grunddata!$1:$1048576,4,FALSE)/1000 -> 2963.842 | H29: =VLOOKUP(H$27,Grunddata!$1:$1048576,4,FALSE)/1000 -> 2687.725
D30: IKU, pct. | E30: =VLOOKUP(E$27,Grunddata!$1:$1048576,5,FALSE) -> 26.85296793 | F30: =VLOOKUP(F$27,Grunddata!$1:$1048576,5,FALSE) -> 53.82076853 | G30: =VLOOKUP(G$27,Grunddata!$1:$1048576,5,FALSE) -> 36.48237659 | H30: =VLOOKUP(H$27,Grunddata!$1:$1048576,5,FALSE) -> 25.22594387
D31: Kilde: Danmarks Statistik, Indenrigs- og Boligministeriet samt DI-beregninger.

Sheet Grunddata
A1: Kommune | B1: Kommunenr. | C1: Udbudte opgaver samlet, 1.000 kr. | D1: Udbudsegnede opgaver samlet, 1.000 kr. | E1: IKU, pct. samlet | F1: Udbudte opgaver Byudvikling, 1.000 kr. | G1: Udbudsegnede opgaver Byudvikling, 1.000 kr. | H1: IKU, pct. Byudvikling | I1: Udbudte opgaver Trafik og Infrastruktur, 1.000 kr. | J1: Udbudsegnede opgaver Trafik og Infrastruktur, 1.000 kr. | K1: IKU, pct. Trafik og Infrastruktur | L1: Udbudte opgaver Undervisning og kultur, 1.000 kr. | M1: Udbudsegnede opgaver Undervisning og kultur, 1.000 kr. | N1: IKU, pct. Undervisning og kultur | O1: Udbudte opgaver Sundhed, 1.000 kr. | P1: Udbudsegnede opgaver Sundhed, 1.000 kr. | Q1: IKU, pct. Sundhed | R1: Udbudte opgaver Sociale opgaver, 1.000 kr. | S1: Udbudsegnede opgaver Sociale opgaver, 1.000 kr. | T1: IKU, pct. Sociale opgaver | U1: Udbudte opgaver Administration, 1.000 kr. | V1: Udbudsegnede opgaver Administration, 1.000 kr. | W1: IKU, pct. Administration
A2: Albertslund | B2: 165 | C2: 432412 | D2: 1610295 | E2: 26.85296793 | F2: 27303 | G2: 118210 | H2: 23.09703071 | I2: 26403 | J2: 66249 | K2: 39.85418648 | L2: 41270 | M2: 220195 | N2: 18.74247826 | O2: 8642 | P2: 43267 | Q2: 19.97365197 | R2: 283405 | S2: 918066 | T2: 30.86978496 | U2: 45389 | V2: 244308 | W2: 18.57859751
A3: Allerød | B3: 201 | C3: 339300 | D3: 1169970 | E3: 29.00074361 | F3: 7933 | G3: 24185 | H3: 32.80132313 | I3: 32744 | J3: 49617 | K3: 65.99351029 | L3: 50474 | M3: 193951 | N3: 26.02409887 | O3: 4494 | P3: 26804 | Q3: 16.76615431 | R3: 212351 | S3: 711932 | T3: 29.82742734 | U3: 31304 | V3: 163481 | W3: 19.14840257
A4: Assens | B4: 420 | C4: 484846 | D4: 1678810 | E4: 28.88033786 | F4: 25252 | G4: 48366 | H4: 52.21023033 | I4: 28707 | J4: 88532 | K4: 32.42556364 | L4: 97856 | M4: 236569 | N4: 41.36467585 | O4: 6708 | P4: 52408 | Q4: 12.79957258 | R4: 270748 | S4: 969534 | T4: 27.92558074 | U4: 55575 | V4: 283401 | W4: 19.61002255
A5: Ballerup | B5: 151 | C5: 678004 | D5: 2687725 | E5: 25.22594387 | F5: 26068 | G5: 78162 | H5: 33.35124485 | I5: 57339 | J5: 79417 | K5: 72.19990682 | L5: 65033 | M5: 418749 | N5: 15.53030574 | O5: 13014 | P5: 86175 | Q5: 15.10182768 | R5: 411521 | S5: 1620222 | T5: 25.39905025 | U5: 105029 | V5: 405000 | W5: 25.93308642
A6: Billund | B6: 530 | C6: 278943 | D6: 1138962 | E6: 24.4909839 | F6: 14193 | G6: 19853 | H6: 71.49045484 | I6: 21033 | J6: 66037 | K6: 31.85032633 | L6: 53985 | M6: 166531 | N6: 32.41738775 | O6: 4480 | P6: 44284 | Q6: 10.11652064 | R6: 141085 | S6: 644649 | T6: 21.88555322 | U6: 44167 | V6: 197608 | W6: 22.35081576
A7: Bornholm | B7: 400 | C7: 424649 | D7: 2033936 | E7: 20.87818889 | F7: 36061 | G7: 102101 | H7: 35.31894888 | I7: 35168 | J7: 182576 | K7: 19.2621155 | L7: 67940 | M7: 232075 | N7: 29.27501885 | O7: 7917 | P7: 53433 | Q7: 14.81668632 | R7: 202831 | S7: 1112976 | T7: 18.2242025 | U7: 74732 | V7: 350775 | W7: 21.30482503
A8: Brøndby | B8: 153 | C8: 509606 | D8: 1951975 | E8: 26.10719912 | F8: 28146 | G8: 54731 | H8: 51.42606567 | I8: 24014 | J8: 56367 | K8: 42.60294144 | L8: 48362 | M8: 198573 | N8: 24.35477129 | O8: 11021 | P8: 77350 | Q8: 14.24822237 | R8: 363631 | S8: 1283727 | T8: 28.32619396 | U8: 34432 | V8: 281227 | W8: 12.24349013
A9: Brønderslev | B9: 810 | C9: 577557 | D9: 1581400 | E9: 36.52187935 | F9: 22221 | G9: 64380 | H9: 34.51537745 | I9: 25705 | J9: 63236 | K9: 40.64931368 | L9: 47887 | M9: 175799 | N9: 27.23963162 | O9: 13721 | P9: 54921 | Q9: 24.98315763 | R9: 417453 | S9: 977983 | T9: 42.6850978 | U9: 50570 | V9: 245081 | W9: 20.63399448
A10: Dragør | B10: 155 | C10: 182577 | D10: 597195 | E10: 30.57242609 | F10: 6973 | G10: 25390 | H10: 27.46356833 | I10: 7448 | J10: 33927 | K10: 21.95301677 | L10: 20219 | M10: 68817 | N10: 29.3808216 | O10: 3691 | P10: 14514 | Q10: 25.43061871 | R10: 118702 | S10: 354218 | T10: 33.5110017 | U10: 25544 | V10: 100329 | W10: 25.46023582
A11: Egedal | B11: 240 | C11: 477133 | D11: 1736905 | E11: 27.47029918 | F11: 26601 | G11: 68034 | H11: 39.09956786 | I11: 37106 | J11: 53840 | K11: 68.91901932 | L11: 85596 | M11: 215188 | N11: 39.777311 | O11: 2527 | P11: 49884 | Q11: 5.065752546 | R11: 269387 | S11: 1031995 | T11: 26.10351794 | U11: 55916 | V11: 317964 | W11: 17.58563863
A12: Esbjerg | B12: 561 | C12: 1159316 | D12: 4898490 | E12: 23.66680344 | F12: 121626 | G12: 186290 | H12: 65.28852864 | I12: 145493 | J12: 264478 | K12: 55.01138091 | L12: 143675 | M12: 584600 | N12: 24.5766336 | O12: 14531 | P12: 169856 | Q12: 8.554893557 | R12: 627928 | S12: 3005237 | T12: 20.89445857 | U12: 106063 | V12: 688029 | W12: 15.41548394
A13: Fanø | B13: 563 | C13: 88036 | D13: 205711 | E13: 42.79596132 | F13: 2246 | G13: 5186 | H13: 43.3089086 | I13: 38830 | J13: 47047 | K13: 82.53448679 | L13: 5807 | M13: 10906 | N13: 53.24591968 | O13: 5178 | P13: 10933 | Q13: 47.36120004 | R13: 24654 | S13: 95427 | T13: 25.83545537 | U13: 11321 | V13: 36212 | W13: 31.2631172
A14: Favrskov | B14: 710 | C14: 459521 | D14: 1840339 | E14: 24.96936706 | F14: 22719 | G14: 46957 | H14: 48.38256277 | I14: 55645 | J14: 69970 | K14: 79.52694012 | L14: 92869 | M14: 261540 | N14: 35.50852642 | O14: 7794 | P14: 66572 | Q14: 11.70762483 | R14: 232222 | S14: 1117759 | T14: 20.77567705 | U14: 48272 | V14: 277541 | W14: 17.39274558
A15: Faxe | B15: 320 | C15: 470901 | D15: 1586417 | E15: 29.68330521 | F15: 35697 | G15: 120070 | H15: 29.73015741 | I15: 27881 | J15: 54036 | K15: 51.59708343 | L15: 51333 | M15: 178547 | N15: 28.75041306 | O15: 8376 | P15: 51186 | Q15: 16.36384949 | R15: 287369 | S15: 936035 | T15: 30.70066824 | U15: 60245 | V15: 246543 | W15: 24.43589962
A16: Fredensborg | B16: 210 | C16: 586353 | D16: 1917929 | E16: 30.57219532 | F16: 34169 | G16: 84456 | H16: 40.45775315 | I16: 26787 | J16: 72728 | K16: 36.83175668 | L16: 69984 | M16: 279407 | N16: 25.04733239 | O16: 8223 | P16: 60355 | Q16: 13.62438903 | R16: 397577 | S16: 1154841 | T16: 34.42699038 | U16: 49613 | V16: 266142 | W16: 18.64155225
A17: Fredericia | B17: 607 | C17: 516211 | D17: 2301783 | E17: 22.42657105 | F17: 28533 | G17: 125713 | H17: 22.69693667 | I17: 42677 | J17: 55795 | K17: 76.4889327 | L17: 40243 | M17: 339085 | N17: 11.86811566 | O17: 14152 | P17: 70927 | Q17: 19.95290933 | R17: 303535 | S17: 1344703 | T17: 22.57264243 | U17: 87071 | V17: 365560 | W17: 23.818525
A18: Frederiksberg | B18: 147 | C18: 1187590 | D18: 4232019 | E18: 28.06201957 | F18: 81891 | G18: 166738 | H18: 49.11357939 | I18: 102188 | J18: 173266 | K18: 58.97752589 | L18: 148450 | M18: 578548 | N18: 25.65906373 | O18: 20698 | P18: 147764 | Q18: 14.00747137 | R18: 721097 | S18: 2539976 | T18: 28.38991392 | U18: 113266 | V18: 625727 | W18: 18.10150433
A19: Frederikshavn | B19: 813 | C19: 657536 | D19: 2646844 | E19: 24.84226498 | F19: 37296 | G19: 91849 | H19: 40.60577687 | I19: 73182 | J19: 121289 | K19: 60.33688133 | L19: 58365 | M19: 251034 | N19: 23.24983867 | O19: 26482 | P19: 96632 | Q19: 27.40500041 | R19: 364929 | S19: 1658967 | T19: 21.99736342 | U19: 97282 | V19: 427073 | W19: 22.77877553
A20: Frederikssund | B20: 250 | C20: 616022 | D20: 2105139 | E20: 29.26277077 | F20: 27641 | G20: 76135 | H20: 36.30524726 | I20: 60483 | J20: 66703 | K20: 90.67508208 | L20: 81746 | M20: 340487 | N20: 24.00855246 | O20: 9376 | P20: 68361 | Q20: 13.71542254 | R20: 365152 | S20: 1233303 | T20: 29.60764711 | U20: 71624 | V20: 320150 | W20: 22.37201312
A21: Furesø | B21: 190 | C21: 469237 | D21: 1871514 | E21: 25.07258829 | F21: 21763 | G21: 98542 | H21: 22.08499929 | I21: 33681 | J21: 58188 | K21: 57.88306867 | L21: 69147 | M21: 270491 | N21: 25.56351228 | O21: 6976 | P21: 61358 | Q21: 11.36934059 | R21: 292463 | S21: 1111950 | T21: 26.30181213 | U21: 45207 | V21: 270985 | W21: 16.6824732
A22: Faaborg-Midtfyn | B22: 430 | C22: 623781 | D22: 2175848 | E22: 28.66840882 | F22: 21856 | G22: 94130 | H22: 23.21895251 | I22: 74622 | J22: 121620 | K22: 61.35668476 | L22: 88887 | M22: 257229 | N22: 34.55559054 | O22: 8609 | P22: 78556 | Q22: 10.95906105 | R22: 340714 | S22: 1262683 | T22: 26.98333628 | U22: 89093 | V22: 361630 | W22: 24.63650693
A23: Gentofte | B23: 157 | C23: 1037298 | D23: 3509706 | E23: 29.55512513 | F23: 101327 | G23: 234868 | H23: 43.14210535 | I23: 84719 | J23: 177530 | K23: 47.72094857 | L23: 104272 | M23: 502197 | N23: 20.76316665 | O23: 25095 | P23: 150862 | Q23: 16.6344076 | R23: 628014 | S23: 2033540 | T23: 30.88279552 | U23: 93871 | V23: 410709 | W23: 22.85584197
A24: Gladsaxe | B24: 159 | C24: 795549 | D24: 3262812 | E24: 24.38231194 | F24: 51426 | G24: 124637 | H24: 41.26062084 | I24: 88412 | J24: 119690 | K24: 73.86749102 | L24: 72160 | M24: 452333 | N24: 15.9528489 | O24: 19940 | P24: 159352 | Q24: 12.51317837 | R24: 480813 | S24: 1918214 | T24: 25.06566004 | U24: 82798 | V24: 488586 | W24: 16.94645364
A25: Glostrup | B25: 161 | C25: 299659 | D25: 1102769 | E25: 27.1733246 | F25: 16575 | G25: 70323 | H25: 23.56981357 | I25: 11706 | J25: 47960 | K25: 24.40783987 | L25: 22045 | M25: 143390 | N25: 15.3741544 | O25: 4422 | P25: 40436 | Q25: 10.93579978 | R25: 206175 | S25: 637100 | T25: 32.36148171 | U25: 38736 | V25: 163560 | W25: 23.68305209
A26: Greve | B26: 253 | C26: 682175 | D26: 2081894 | E26: 32.76703809 | F26: 32560 | G26: 57923 | H26: 56.21255805 | I26: 41748 | J26: 61270 | K26: 68.13775094 | L26: 118930 | M26: 350929 | N26: 33.89004613 | O26: 8253 | P26: 62737 | Q26: 13.15491656 | R26: 414733 | S26: 1245652 | T26: 33.29445142 | U26: 65951 | V26: 303383 | W26: 21.73852853
A27: Gribskov | B27: 270 | C27: 964670 | D27: 1792375 | E27: 53.82076853 | F27: 60392 | G27: 89899 | H27: 67.17761043 | I27: 60123 | J27: 66220 | K27: 90.79281184 | L27: 80974 | M27: 211382 | N27: 38.3069514 | O27: 19850 | P27: 49430 | Q27: 40.15779891 | R27: 665756 | S27: 1059922 | T27: 62.81179181 | U27: 77575 | V27: 315522 | W27: 24.58624121
A28: Guldborgsund | B28: 376 | C28: 937285 | D28: 2845415 | E28: 32.94018623 | F28: 28000 | G28: 77580 | H28: 36.09177623 | I28: 74575 | J28: 147935 | K28: 50.41065333 | L28: 122763 | M28: 347052 | N28: 35.3730853 | O28: 17106 | P28: 92537 | Q28: 18.48557874 | R28: 556119 | S28: 1781407 | T28: 31.21796423 | U28: 138722 | V28: 398904 | W28: 34.77578565
A29: Haderslev | B29: 510 | C29: 690658 | D29: 2567683 | E29: 26.8981023 | F29: 26533 | G29: 98636 | H29: 26.89991484 | I29: 66325 | J29: 151136 | K29: 43.88431611 | L29: 89328 | M29: 310200 | N29: 28.79690522 | O29: 15563 | P29: 88279 | Q29: 17.62933427 | R29: 403190 | S29: 1469481 | T29: 27.4375783 | U29: 89719 | V29: 449951 | W29: 19.93972677
A30: Halsnæs | B30: 260 | C30: 416989 | D30: 1451155 | E30: 28.73497318 | F30: 15872 | G30: 41676 | H30: 38.08426912 | I30: 22869 | J30: 34145 | K30: 66.97613121 | L30: 47528 | M30: 171521 | N30: 27.70972651 | O30: 6129 | P30: 52363 | Q30: 11.70482975 | R30: 277897 | S30: 921394 | T30: 30.16049594 | U30: 46694 | V30: 230056 | W30: 20.2967973
A31: Hedensted | B31: 766 | C31: 444189 | D31: 1792080 | E31: 24.78622606 | F31: 12905 | G31: 24668 | H31: 52.31473974 | I31: 45031 | J31: 83940 | K31: 53.64665237 | L31: 101898 | M31: 251910 | N31: 40.45016077 | O31: 6717 | P31: 51515 | Q31: 13.0389207 | R31: 224200 | S31: 1106937 | T31: 20.25408853 | U31: 53438 | V31: 273110 | W31: 19.56647505
A32: Helsingør | B32: 217 | C32: 865336 | D32: 3017500 | E32: 28.67724938 | F32: 33341 | G32: 127069 | H32: 26.23850034 | I32: 116861 | J32: 123946 | K32: 94.28380101 | L32: 111623 | M32: 497172 | N32: 22.45158617 | O32: 9544 | P32: 94665 | Q32: 10.08186764 | R32: 530164 | S32: 1759378 | T32: 30.13360404 | U32: 63803 | V32: 415270 | W32: 15.36422087
A33: Herlev | B33: 163 | C33: 349318 | D33: 1356193 | E33: 25.75724842 | F33: 15313 | G33: 50803 | H33: 30.14192075 | I33: 13302 | J33: 47562 | K33: 27.96770531 | L33: 47376 | M33: 241132 | N33: 19.64733009 | O33: 6256 | P33: 51399 | Q33: 12.17144302 | R33: 229614 | S33: 768698 | T33: 29.87050831 | U33: 37457 | V33: 196599 | W33: 19.05248755
A34: Herning | B34: 657 | C34: 918076 | D34: 3570854 | E34: 25.71026427 | F34: 67207 | G34: 162334 | H34: 41.40044599 | I34: 109361 | J34: 173598 | K34: 62.99669351 | L34: 199922 | M34: 591498 | N34: 33.79926897 | O34: 16408 | P34: 98449 | Q34: 16.66649737 | R34: 416590 | S34: 2094187 | T34: 19.89268389 | U34: 108588 | V34: 450788 | W34: 24.08848505
A35: Hillerød | B35: 219 | C35: 801054 | D35: 2482918 | E35: 32.26260392 | F35: 45012 | G35: 83473 | H35: 53.92402334 | I35: 77002 | J35: 85741 | K35: 89.80767661 | L35: 177459 | M35: 540096 | N35: 32.85693654 | O35: 11953 | P35: 90720 | Q35: 13.17570547 | R35: 398414 | S35: 1340216 | T35: 29.72759615 | U35: 91214 | V35: 342672 | W35: 26.6184573
A36: Hjørring | B36: 860 | C36: 754777 | D36: 2995787 | E36: 25.19461497 | F36: 19742 | G36: 80737 | H36: 24.4522338 | I36: 72647 | J36: 121624 | K36: 59.73080971 | L36: 86517 | M36: 364085 | N36: 23.76285757 | O36: 13094 | P36: 121776 | Q36: 10.75252923 | R36: 463766 | S36: 1815148 | T36: 25.54976233 | U36: 99011 | V36: 492417 | W36: 20.10714496
A37: Holbæk | B37: 316 | C37: 1081280 | D37: 2963842 | E37: 36.48237659 | F37: 50692 | G37: 110697 | H37: 45.79347227 | I37: 52966 | J37: 89994 | K37: 58.85503478 | L37: 159752 | M37: 485976 | N37: 32.87240522 | O37: 9407 | P37: 85454 | Q37: 11.00826175 | R37: 705769 | S37: 1760855 | T37: 40.08104018 | U37: 102694 | V37: 430866 | W37: 23.83432436
A38: Holstebro | B38: 661 | C38: 819663 | D38: 2630206 | E38: 31.1634526 | F38: 46834 | G38: 87169 | H38: 53.72781608 | I38: 97680 | J38: 103253 | K38: 94.60257813 | L38: 136206 | M38: 445482 | N38: 30.57497273 | O38: 6767 | P38: 62116 | Q38: 10.89413356 | R38: 443202 | S38: 1632716 | T38: 27.14507606 | U38: 88974 | V38: 299470 | W38: 29.71048853
A39: Horsens | B39: 615 | C39: 1053931 | D39: 3757210 | E39: 28.05089415 | F39: 43783 | G39: 124676 | H39: 35.11742436 | I39: 126579 | J39: 220992 | K39: 57.27763901 | L39: 140182 | M39: 555197 | N39: 25.24905574 | O39: 10057 | P39: 138319 | Q39: 7.27087385 | R39: 590236 | S39: 2221637 | T39: 26.56761658 | U39: 121697 | V39: 496389 | W39: 24.51645786
A40: Hvidovre | B40: 167 | C40: 641587 | D40: 2631063 | E40: 24.38508694 | F40: 40276 | G40: 143912 | H40: 27.98654733 | I40: 56209 | J40: 105867 | K40: 53.0939764 | L40: 58786 | M40: 339161 | N40: 17.33277116 | O40: 13362 | P40: 79506 | Q40: 16.80627877 | R40: 402905 | S40: 1582743 | T40: 25.45612269 | U40: 70049 | V40: 379874 | W40: 18.4400617
A41: Høje-Taastrup | B41: 169 | C41: 791624 | D41: 2606597 | E41: 30.37001884 | F41: 72962 | G41: 148424 | H41: 49.15781814 | I41: 54462 | J41: 102246 | K41: 53.26565342 | L41: 74474 | M41: 316279 | N41: 23.54693166 | O41: 6980 | P41: 83518 | Q41: 8.357479825 | R41: 501241 | S41: 1560384 | T41: 32.12292615 | U41: 81505 | V41: 395746 | W41: 20.59528081
A42: Hørsholm | B42: 223 | C42: 416636 | D42: 1196908 | E42: 34.80935878 | F42: 26059 | G42: 58649 | H42: 44.43213013 | I42: 29013 | J42: 63367 | K42: 45.78566131 | L42: 57931 | M42: 154744 | N42: 37.4366696 | O42: 1698 | P42: 34988 | Q42: 4.853092489 | R42: 252480 | S42: 701947 | T42: 35.96852754 | U42: 49455 | V42: 183213 | W42: 26.99317188
A43: Ikast-Brande | B43: 756 | C43: 482921 | D43: 1654554 | E43: 29.18738222 | F43: 17998 | G43: 74583 | H43: 24.1315045 | I43: 54794 | J43: 126285 | K43: 43.38915944 | L43: 79816 | M43: 216467 | N43: 36.87213293 | O43: 9499 | P43: 55590 | Q43: 17.08760568 | R43: 270116 | S43: 933535 | T43: 28.93474803 | U43: 50698 | V43: 248094 | W43: 20.43499641
A44: Ishøj | B44: 183 | C44: 356223 | D44: 1301529 | E44: 27.3695784 | F44: 48775 | G44: 125970 | H44: 38.7195364 | I44: 26123 | J44: 48477 | K44: 53.88741052 | L44: 39273 | M44: 224583 | N44: 17.48707605 | O44: 5437 | P44: 51342 | Q44: 10.58977056 | R44: 181595 | S44: 646246 | T44: 28.0999805 | U44: 55020 | V44: 204911 | W44: 26.85068152
A45: Jammerbugt | B45: 849 | C45: 619719 | D45: 1690082 | E45: 36.66798416 | F45: 36405 | G45: 81730 | H45: 44.54300746 | I45: 24333 | J45: 57676 | K45: 42.18912546 | L45: 64590 | M45: 195070 | N45: 33.11119085 | O45: 10466 | P45: 66843 | Q45: 15.65758569 | R45: 424275 | S45: 1016795 | T45: 41.72670007 | U45: 59650 | V45: 271968 | W45: 21.93272738
A46: Kalundborg | B46: 326 | C46: 601188 | D46: 2175482 | E46: 27.63470348 | F46: 18111 | G46: 58516 | H46: 30.95050926 | I46: 66827 | J46: 106851 | K46: 62.54223171 | L46: 74934 | M46: 348160 | N46: 21.52286305 | O46: 11072 | P46: 54478 | Q46: 20.32380043 | R46: 360377 | S46: 1327171 | T46: 27.15377295 | U46: 69867 | V46: 280306 | W46: 24.92526025
A47: Kerteminde | B47: 440 | C47: 249579 | D47: 1066413 | E47: 23.40359692 | F47: 12354 | G47: 43815 | H47: 28.19582335 | I47: 16754 | J47: 52609 | K47: 31.84626205 | L47: 38220 | M47: 94575 | N47: 40.41237113 | O47: 8169 | P47: 39056 | Q47: 20.91612044 | R47: 128854 | S47: 665116 | T47: 19.37316197 | U47: 45228 | V47: 171242 | W47: 26.41174478
A48: Kolding | B48: 621 | C48: 996618 | D48: 3706994 | E48: 26.88480208 | F48: 62375 | G48: 140962 | H48: 44.24951405 | I48: 130097 | J48: 195338 | K48: 66.60096858 | L48: 125098 | M48: 603717 | N48: 20.72129822 | O48: 17198 | P48: 135320 | Q48: 12.7091339 | R48: 525789 | S48: 2051466 | T48: 25.62991539 | U48: 136061 | V48: 580191 | W48: 23.45107042
A49: København | B49: 101 | C49: 6280641 | D49: 26788259 | E49: 23.44549902 | F49: 238226 | G49: 881899 | H49: 27.01284387 | I49: 584578 | J49: 1019769 | K49: 57.32455095 | L49: 696967 | M49: 2998510 | N49: 23.24377774 | O49: 124387 | P49: 1051388 | Q49: 11.83074184 | R49: 3529773 | S49: 14799592 | T49: 23.85047507 | U49: 1106710 | V49: 6037101 | W49: 18.33181191
A50: Køge | B50: 259 | C50: 808099 | D50: 2748778 | E50: 29.3984818 | F50: 74459 | G50: 142531 | H50: 52.24056521 | I50: 88617 | J50: 139538 | K50: 63.50743167 | L50: 99544 | M50: 404414 | N50: 24.61438031 | O50: 20469 | P50: 87647 | Q50: 23.35390829 | R50: 448494 | S50: 1573060 | T50: 28.51092775 | U50: 76516 | V50: 401588 | W50: 19.05335817
A51: Langeland | B51: 482 | C51: 163779 | D51: 715932 | E51: 22.87633462 | F51: 3359 | G51: 11852 | H51: 28.34120823 | I51: 6719 | J51: 48047 | K51: 13.98422378 | L51: 52621 | M51: 101937 | N51: 51.62109931 | O51: 4564 | P51: 25051 | Q51: 18.21883358 | R51: 72733 | S51: 433973 | T51: 16.75979842 | U51: 23783 | V51: 95072 | W51: 25.01577752
A52: Lejre | B52: 350 | C52: 384751 | D52: 1175997 | E52: 32.71700523 | F52: 18777 | G52: 54298 | H52: 34.58138421 | I52: 31153 | J52: 46829 | K52: 66.52501655 | L52: 40074 | M52: 173513 | N52: 23.09567583 | O52: 8515 | P52: 42302 | Q52: 20.12907191 | R52: 241824 | S52: 673174 | T52: 35.92295603 | U52: 44408 | V52: 185881 | W52: 23.89055363
A53: Lemvig | B53: 665 | C53: 199827 | D53: 858418 | E53: 23.27851932 | F53: 22777 | G53: 50060 | H53: 45.49940072 | I53: 28093 | J53: 44893 | K53: 62.57768472 | L53: 23691 | M53: 73525 | N53: 32.2216933 | O53: 6347 | P53: 52739 | Q53: 12.0347371 | R53: 84546 | S53: 480637 | T53: 17.59040607 | U53: 34373 | V53: 156564 | W53: 21.95460004
A54: Lolland | B54: 360 | C54: 659957 | D54: 2382833 | E54: 27.69631779 | F54: 43241 | G54: 109403 | H54: 39.5245103 | I54: 80061 | J54: 183128 | K54: 43.7186012 | L54: 60528 | M54: 245873 | N54: 24.61758713 | O54: 13667 | P54: 78486 | Q54: 17.41329664 | R54: 358568 | S54: 1310103 | T54: 27.3694511 | U54: 103892 | V54: 455840 | W54: 22.79133029
A55: Lyngby-Taarbæk | B55: 173 | C55: 730207 | D55: 2646957 | E55: 27.58665894 | F55: 54644 | G55: 193323 | H55: 28.26564868 | I55: 48900 | J55: 90598 | K55: 53.97470143 | L55: 80191 | M55: 372877 | N55: 21.50601941 | O55: 13980 | P55: 100172 | Q55: 13.95599569 | R55: 474699 | S55: 1562438 | T55: 30.38194156 | U55: 57793 | V55: 327549 | W55: 17.64407768
A56: Læsø | B56: 825 | C56: 41582 | D56: 198912 | E56: 20.90472169 | F56: 1821 | G56: 7932 | H56: 22.95763994 | I56: 17894 | J56: 85322 | K56: 20.97231664 | L56: 2712 | M56: 6558 | N56: 41.35407136 | O56: 1129 | P56: 3431 | Q56: 32.90585835 | R56: 7849 | S56: 67210 | T56: 11.67832168 | U56: 10177 | V56: 28459 | W56: 35.76021645
A57: Mariagerfjord | B57: 846 | C57: 422396 | D57: 1839119 | E57: 22.96730119 | F57: 19995 | G57: 63629 | H57: 31.42435053 | I57: 47136 | J57: 91980 | K57: 51.24592303 | L57: 32410 | M57: 226322 | N57: 14.3203047 | O57: 10218 | P57: 75586 | Q57: 13.51837642 | R57: 260868 | S57: 1092687 | T57: 23.87399136 | U57: 51769 | V57: 288915 | W57: 17.91841891
A58: Middelfart | B58: 410 | C58: 389082 | D58: 1614467 | E58: 24.09971836 | F58: 19966 | G58: 48473 | H58: 41.18994079 | I58: 18094 | J58: 66316 | K58: 27.28451656 | L58: 65047 | M58: 229632 | N58: 28.32662695 | O58: 15062 | P58: 55405 | Q58: 27.18527209 | R58: 225688 | S58: 939716 | T58: 24.01661779 | U58: 45225 | V58: 274925 | W58: 16.44994089
A59: Morsø | B59: 773 | C59: 247235 | D59: 983170 | E59: 25.14671929 | F59: 12540 | G59: 42753 | H59: 29.331275 | I59: 26610 | J59: 45381 | K59: 58.63687446 | L59: 33289 | M59: 97902 | N59: 34.00236972 | O59: 4780 | P59: 22221 | Q59: 21.51118312 | R59: 133012 | S59: 620386 | T59: 21.44020013 | U59: 37004 | V59: 154527 | W59: 23.94662421
A60: Norddjurs | B60: 707 | C60: 396678 | D60: 1778869 | E60: 22.29944982 | F60: 56448 | G60: 113880 | H60: 49.56796628 | I60: 47279 | J60: 94825 | K60: 49.85921434 | L60: 50722 | M60: 267171 | N60: 18.98484491 | O60: 7035 | P60: 59207 | Q60: 11.88204097 | R60: 180041 | S60: 982440 | T60: 18.32590285 | U60: 55153 | V60: 261346 | W60: 21.10344141
A61: Nordfyn | B61: 480 | C61: 322770 | D61: 1238445 | E61: 26.06252195 | F61: 20685 | G61: 30247 | H61: 68.38694747 | I61: 47290 | J61: 89772 | K61: 52.67789511 | L61: 42487 | M61: 150724 | N61: 28.18860964 | O61: 19757 | P61: 65416 | Q61: 30.20209123 | R61: 161357 | S61: 708846 | T61: 22.76333647 | U61: 31194 | V61: 193440 | W61: 16.12593052
A62: Nyborg | B62: 450 | C62: 306681 | D62: 1378299 | E62: 22.25068726 | F62: 11811 | G62: 52474 | H62: 22.50828982 | I62: 40004 | J62: 73004 | K62: 54.79699742 | L62: 41541 | M62: 159933 | N62: 25.97400161 | O62: 5097 | P62: 42159 | Q62: 12.08994521 | R62: 153146 | S62: 786268 | T62: 19.47758271 | U62: 55082 | V62: 264461 | W62: 20.82802379
A63: Næstved | B63: 370 | C63: 949621 | D63: 3423280 | E63: 27.74009137 | F63: 75512 | G63: 153485 | H63: 49.19829299 | I63: 79634 | J63: 145811 | K63: 54.61453525 | L63: 146679 | M63: 475041 | N63: 30.87712429 | O63: 16715 | P63: 106336 | Q63: 15.71904153 | R63: 506789 | S63: 2035735 | T63: 24.89464493 | U63: 124292 | V63: 506872 | W63: 24.52137818
A64: Odder | B64: 727 | C64: 264065 | D64: 963488 | E64: 27.40719137 | F64: 14701 | G64: 25075 | H64: 58.62811565 | I64: 21263 | J64: 48895 | K64: 43.48706412 | L64: 37319 | M64: 111766 | N64: 33.39029759 | O64: 3603 | P64: 36654 | Q64: 9.829759371 | R64: 155065 | S64: 585136 | T64: 26.50067677 | U64: 32114 | V64: 155962 | W64: 20.59091317
A65: Odense | B65: 461 | C65: 2418304 | D65: 8176036 | E65: 29.57795196 | F65: 153393 | G65: 362982 | H65: 42.25912029 | I65: 335785 | J65: 370380 | K65: 90.65959285 | L65: 342506 | M65: 1122101 | N65: 30.52363379 | O65: 32942 | P65: 309651 | Q65: 10.63842842 | R65: 1301716 | S65: 4663506 | T65: 27.91281924 | U65: 251962 | V65: 1347416 | W65: 18.69964436
A66: Odsherred | B66: 306 | C66: 498545 | D66: 1555927 | E66: 32.04167034 | F66: 21755 | G66: 41930 | H66: 51.88409254 | I66: 46029 | J66: 55291 | K66: 83.24862998 | L66: 58351 | M66: 209657 | N66: 27.83164884 | O66: 6144 | P66: 42734 | Q66: 14.37731081 | R66: 298062 | S66: 954660 | T66: 31.22179624 | U66: 68204 | V66: 251655 | W66: 27.10218354
A67: Randers | B67: 730 | C67: 939632 | D67: 4186334 | E67: 22.44522296 | F67: 56689 | G67: 147908 | H67: 38.3272034 | I67: 123412 | J67: 189952 | K67: 64.97009771 | L67: 160911 | M67: 597443 | N67: 26.93328066 | O67: 21234 | P67: 157562 | Q67: 13.47659969 | R67: 468858 | S67: 2506205 | T67: 18.70788702 | U67: 108528 | V67: 587264 | W67: 18.48027463
A68: Rebild | B68: 840 | C68: 286744 | D68: 1195984 | E68: 23.97557158 | F68: 5509 | G68: 33633 | H68: 16.37974608 | I68: 21408 | J68: 43340 | K68: 49.39547762 | L68: 53780 | M68: 169716 | N68: 31.68823211 | O68: 15277 | P68: 53422 | Q68: 28.59683277 | R68: 153807 | S68: 704049 | T68: 21.84606469 | U68: 36963 | V68: 191824 | W68: 19.26922596
A69: Ringkøbing-Skjern | B69: 760 | C69: 616864 | D69: 2444760 | E69: 25.23208822 | F69: 32855 | G69: 121193 | H69: 27.10965155 | I69: 68971 | J69: 129958 | K69: 53.07176165 | L69: 91469 | M69: 317370 | N69: 28.82093456 | O69: 8571 | P69: 78075 | Q69: 10.97790586 | R69: 331915 | S69: 1474036 | T69: 22.51742834 | U69: 83083 | V69: 324128 | W69: 25.63277471
A70: Ringsted | B70: 329 | C70: 572038 | D70: 1749714 | E70: 32.69322872 | F70: 27202 | G70: 68052 | H70: 39.97237407 | I70: 25576 | J70: 66486 | K70: 38.46824895 | L70: 126016 | M70: 352943 | N70: 35.70434886 | O70: 8102 | P70: 59901 | Q70: 13.52565066 | R70: 333292 | S70: 951586 | T70: 35.02489528 | U70: 51850 | V70: 250746 | W70: 20.67829596
A71: Roskilde | B71: 265 | C71: 1087220 | D71: 4088316 | E71: 26.59334552 | F71: 92735 | G71: 238530 | H71: 38.8777093 | I71: 134106 | J71: 195265 | K71: 68.67897473 | L71: 184829 | M71: 677441 | N71: 27.28340918 | O71: 12904 | P71: 134493 | Q71: 9.594551389 | R71: 565957 | S71: 2363808 | T71: 23.94259601 | U71: 91077 | V71: 478779 | W71: 19.02276416
A72: Rudersdal | B72: 230 | C72: 685122 | D72: 2628695 | E72: 26.06319866 | F72: 50444 | G72: 138699 | H72: 36.36940425 | I72: 74617 | J72: 100243 | K72: 74.43612023 | L72: 102457 | M72: 386453 | N72: 26.51215025 | O72: 17737 | P72: 110370 | Q72: 16.07049017 | R72: 377988 | S72: 1542198 | T72: 24.50969331 | U72: 61879 | V72: 350732 | W72: 17.6428156
A73: Rødovre | B73: 175 | C73: 541835 | D73: 2056182 | E73: 26.35150974 | F73: 32962 | G73: 105074 | H73: 31.37027238 | I73: 42200 | J73: 72404 | K73: 58.2840727 | L73: 45324 | M73: 324242 | N73: 13.9784482 | O73: 10186 | P73: 71802 | Q73: 14.18623437 | R73: 371951 | S73: 1204984 | T73: 30.86771277 | U73: 39212 | V73: 277676 | W73: 14.12149412
A74: Samsø | B74: 741 | C74: 60173 | D74: 303656 | E74: 19.81617356 | F74: 2366 | G74: 9597 | H74: 24.65353756 | I74: 16814 | J74: 104939 | K74: 16.02264173 | L74: 5316 | M74: 17356 | N74: 30.62917723 | O74: 669 | P74: 5933 | Q74: 11.27591438 | R74: 22974 | S74: 110630 | T74: 20.76651903 | U74: 12034 | V74: 55201 | W74: 21.8003297
A75: Silkeborg | B75: 740 | C75: 1063252 | D75: 3879154 | E75: 27.40937844 | F75: 59067 | G75: 112533 | H75: 52.48860334 | I75: 87254 | J75: 146557 | K75: 59.53588024 | L75: 152637 | M75: 613398 | N75: 24.88384377 | O75: 19069 | P75: 120845 | Q75: 15.77971782 | R75: 604335 | S75: 2359847 | T75: 25.6090755 | U75: 118973 | V75: 525974 | W75: 22.61955914
A76: Skanderborg | B76: 746 | C76: 570644 | D76: 2556526 | E76: 22.32107164 | F76: 18432 | G76: 65749 | H76: 28.03388645 | I76: 67337 | J76: 100011 | K76: 67.32959374 | L76: 116181 | M76: 408576 | N76: 28.43559093 | O76: 17114 | P76: 110828 | Q76: 15.44194608 | R76: 259873 | S76: 1525410 | T76: 17.03627222 | U76: 91707 | V76: 345952 | W76: 26.50859079
A77: Skive | B77: 779 | C77: 445977 | D77: 2031536 | E77: 21.95269983 | F77: 56103 | G77: 100313 | H77: 55.92794553 | I77: 65993 | J77: 137012 | K77: 48.16585409 | L77: 88027 | M77: 314643 | N77: 27.97678639 | O77: 9249 | P77: 63566 | Q77: 14.55023126 | R77: 161702 | S77: 1072126 | T77: 15.08236905 | U77: 64903 | V77: 343876 | W77: 18.87395457
A78: Slagelse | B78: 330 | C78: 1186433 | D78: 3939993 | E78: 30.11256619 | F78: 71733 | G78: 223518 | H78: 32.09271737 | I78: 104397 | J78: 209289 | K78: 49.88174247 | L78: 117725 | M78: 478244 | N78: 24.61609555 | O78: 11754 | P78: 83393 | Q78: 14.09470819 | R78: 754455 | S78: 2409034 | T78: 31.31773981 | U78: 126369 | V78: 536515 | W78: 23.55367511
A79: Solrød | B79: 269 | C79: 318135 | D79: 974193 | E79: 32.6562601 | F79: 18312 | G79: 35978 | H79: 50.89777086 | I79: 23875 | J79: 28387 | K79: 84.10540036 | L79: 39613 | M79: 127995 | N79: 30.94886519 | O79: 4140 | P79: 31211 | Q79: 13.26455416 | R79: 194806 | S79: 576961 | T79: 33.7641539 | U79: 37389 | V79: 173661 | W79: 21.52987717
A80: Sorø | B80: 340 | C80: 410537 | D80: 1309979 | E80: 31.33920467 | F80: 11580 | G80: 46509 | H80: 24.89840676 | I80: 6424 | J80: 41834 | K80: 15.35593058 | L80: 41818 | M80: 173928 | N80: 24.04328228 | O80: 1829 | P80: 43592 | Q80: 4.195723986 | R80: 311248 | S80: 782140 | T80: 39.79441021 | U80: 37638 | V80: 221976 | W80: 16.95588712
A81: Stevns | B81: 336 | C81: 300297 | D81: 928931 | E81: 32.32715885 | F81: 22338 | G81: 48418 | H81: 46.13573464 | I81: 24578 | J81: 39272 | K81: 62.58402933 | L81: 40624 | M81: 105546 | N81: 38.48937904 | O81: 6399 | P81: 31020 | Q81: 20.62862669 | R81: 173084 | S81: 547131 | T81: 31.634837 | U81: 33274 | V81: 157544 | W81: 21.12044889
A82: Struer | B82: 671 | C82: 244474 | D82: 965332 | E82: 25.32538028 | F82: 17987 | G82: 54618 | H82: 32.93236662 | I82: 12435 | J82: 46111 | K82: 26.96753486 | L82: 43727 | M82: 112753 | N82: 38.78122977 | O82: 9453 | P82: 44102 | Q82: 21.43440207 | R82: 115516 | S82: 519754 | T82: 22.22512958 | U82: 45356 | V82: 187994 | W82: 24.1263019
A83: Svendborg | B83: 479 | C83: 613752 | D83: 2571741 | E83: 23.86523371 | F83: 36504 | G83: 90248 | H83: 40.4485418 | I83: 76906 | J83: 102323 | K83: 75.16003245 | L83: 77396 | M83: 331880 | N83: 23.32047728 | O83: 11863 | P83: 98307 | Q83: 12.06729938 | R83: 328526 | S83: 1519333 | T83: 21.62304116 | U83: 82557 | V83: 429650 | W83: 19.21494239
A84: Syddjurs | B84: 706 | C84: 440244 | D84: 1755951 | E84: 25.07154243 | F84: 23817 | G84: 48759 | H84: 48.84636682 | I84: 54437 | J84: 139522 | K84: 39.01678588 | L84: 63319 | M84: 220963 | N84: 28.65592882 | O84: 20140 | P84: 93693 | Q84: 21.49573607 | R84: 194348 | S84: 980001 | T84: 19.83140834 | U84: 84183 | V84: 273013 | W84: 30.83479541
A85: Sønderborg | B85: 540 | C85: 723019 | D85: 3272018 | E85: 22.09703614 | F85: 38378 | G85: 132010 | H85: 29.07204 | I85: 76990 | J85: 140122 | K85: 54.94497652 | L85: 98592 | M85: 383617 | N85: 25.7006337 | O85: 20335 | P85: 126304 | Q85: 16.10004434 | R85: 388132 | S85: 1954148 | T85: 19.86195518 | U85: 100592 | V85: 535817 | W85: 18.77357381
A86: Thisted | B86: 787 | C86: 416353 | D86: 1894680 | E86: 21.97484536 | F86: 19472 | G86: 54837 | H86: 35.50887175 | I86: 53385 | J86: 94845 | K86: 56.28657283 | L86: 58755 | M86: 291643 | N86: 20.14620615 | O86: 7027 | P86: 57883 | Q86: 12.14000656 | R86: 205160 | S86: 1097769 | T86: 18.6888134 | U86: 72554 | V86: 297703 | W86: 24.37126935
A87: Tønder | B87: 550 | C87: 452399 | D87: 1820131 | E87: 24.85529888 | F87: 61527 | G87: 144279 | H87: 42.64445969 | I87: 83480 | J87: 105334 | K87: 79.25266296 | L87: 41668 | M87: 187611 | N87: 22.20978514 | O87: 10159 | P87: 70207 | Q87: 14.47006709 | R87: 201595 | S87: 991193 | T87: 20.33862225 | U87: 53970 | V87: 321507 | W87: 16.78657074
A88: Tårnby | B88: 185 | C88: 408448 | D88: 1930455 | E88: 21.15812075 | F88: 19354 | G88: 109692 | H88: 17.64394851 | I88: 31450 | J88: 57887 | K88: 54.32998773 | L88: 39142 | M88: 305276 | N88: 12.82183991 | O88: 4974 | P88: 54263 | Q88: 9.166467022 | R88: 264424 | S88: 1150606 | T88: 22.98128117 | U88: 49104 | V88: 252731 | W88: 19.42935374
A89: Vallensbæk | B89: 187 | C89: 182148 | D89: 706519 | E89: 25.78104764 | F89: 10056 | G89: 26013 | H89: 38.65759428 | I89: 14719 | J89: 36670 | K89: 40.13907827 | L89: 29424 | M89: 106704 | N89: 27.57534863 | O89: 4688 | P89: 24635 | Q89: 19.0298356 | R89: 94335 | S89: 385099 | T89: 24.49629835 | U89: 28926 | V89: 127398 | W89: 22.705223
A90: Varde | B90: 573 | C90: 551827 | D90: 2049903 | E90: 26.919664 | F90: 31405 | G90: 65321 | H90: 48.07795349 | I90: 63186 | J90: 83876 | K90: 75.33263389 | L90: 111882 | M90: 315254 | N90: 35.48947833 | O90: 15100 | P90: 78838 | Q90: 19.15320023 | R90: 269296 | S90: 1194995 | T90: 22.53532442 | U90: 60958 | V90: 311619 | W90: 19.56170837
A91: Vejen | B91: 575 | C91: 467992 | D91: 1741074 | E91: 26.87950081 | F91: 7193 | G91: 14515 | H91: 49.5556321 | I91: 66125 | J91: 109430 | K91: 60.42675683 | L91: 84256 | M91: 214518 | N91: 39.27689052 | O91: 13675 | P91: 79028 | Q91: 17.30399352 | R91: 224729 | S91: 1035585 | T91: 21.70068126 | U91: 72014 | V91: 287998 | W91: 25.00503476
A92: Vejle | B92: 630 | C92: 1366541 | D92: 4666205 | E92: 29.28591864 | F92: 102042 | G92: 209243 | H92: 48.7672228 | I92: 132157 | J92: 191936 | K92: 68.85472241 | L92: 191402 | M92: 711407 | N92: 26.90471137 | O92: 36077 | P92: 197543 | Q92: 18.26285923 | R92: 755698 | S92: 2732039 | T92: 27.6605861 | U92: 149165 | V92: 624037 | W92: 23.9032301
A93: Vesthimmerland | B93: 820 | C93: 553123 | D93: 1808851 | E93: 30.57869333 | F93: 14603 | G93: 52339 | H93: 27.90080055 | I93: 49351 | J93: 74518 | K93: 66.22695188 | L93: 81055 | M93: 289951 | N93: 27.95472338 | O93: 8643 | P93: 55965 | Q93: 15.44358081 | R93: 351838 | S93: 1084411 | T93: 32.44507848 | U93: 47633 | V93: 251667 | W93: 18.9269948
A94: Viborg | B94: 791 | C94: 1032881 | D94: 3777913 | E94: 27.33998904 | F94: 61554 | G94: 90816 | H94: 67.7788055 | I94: 136346 | J94: 189038 | K94: 72.12623917 | L94: 207921 | M94: 553541 | N94: 37.56198728 | O94: 25182 | P94: 126616 | Q94: 19.88848171 | R94: 474193 | S94: 2305469 | T94: 20.5681794 | U94: 127685 | V94: 512433 | W94: 24.91740384
A95: Vordingborg | B95: 390 | C95: 638911 | D95: 2238666 | E95: 28.53980898 | F95: 42140 | G95: 77940 | H95: 54.0672312 | I95: 52906 | J95: 115268 | K95: 45.8982545 | L95: 74599 | M95: 246520 | N95: 30.26083076 | O95: 9312 | P95: 74772 | Q95: 12.45385973 | R95: 385351 | S95: 1422008 | T95: 27.09907399 | U95: 74603 | V95: 302158 | W95: 24.69006281
A96: Ærø | B96: 492 | C96: 90184 | D96: 451048 | E96: 19.99432433 | F96: 3955 | G96: 9480 | H96: 41.71940928 | I96: 30484 | J96: 149310 | K96: 20.41658295 | L96: 10760 | M96: 22863 | N96: 47.06294012 | O96: 2241 | P96: 12822 | Q96: 17.47777258 | R96: 26905 | S96: 192320 | T96: 13.98970466 | U96: 15839 | V96: 64253 | W96: 24.65098906
A97: Aabenraa | B97: 580 | C97: 705108 | D97: 2574919 | E97: 27.38369634 | F97: 31667 | G97: 50952 | H97: 62.15065159 | I97: 95213 | J97: 135181 | K97: 70.4337148 | L97: 132045 | M97: 413772 | N97: 31.91250254 | O97: 10709 | P97: 94168 | Q97: 11.37222836 | R97: 352485 | S97: 1460556 | T97: 24.13361761 | U97: 82989 | V97: 420290 | W97: 19.74565181
A98: Aalborg | B98: 851 | C98: 2766432 | D98: 9193006 | E98: 30.09279011 | F98: 181323 | G98: 269139 | H98: 67.37150692 | I98: 490129 | J98: 693374 | K98: 70.6875366 | L98: 358795 | M98: 1209851 | N98: 29.65613121 | O98: 51367 | P98: 327612 | Q98: 15.6792181 | R98: 1432441 | S98: 5506352 | T98: 26.01433762 | U98: 252377 | V98: 1186678 | W98: 21.2675216
A99: Aarhus | B99: 751 | C99: 3234728 | D99: 14087692 | E99: 22.9613765 | F99: 241744 | G99: 635086 | H99: 38.06476603 | I99: 374344 | J99: 563612 | K99: 66.41874197 | L99: 614419 | M99: 2185288 | N99: 28.11615677 | O99: 48522 | P99: 483595 | Q99: 10.0336025 | R99: 1480832 | S99: 7828731 | T99: 18.91535167 | U99: 474867 | V99: 2391380 | W99: 19.85744633
E100: 26.91389816

Sheet Grunddata_links (hidden)
A1: Name | B1: Link
A2: Albertslund | B2: https://www.danskindustri.dk/offentlig-privatsamarbejde/opsstatus/Albertslund
A3: Allerød | B3: https://www.danskindustri.dk/offentlig-privatsamarbejde/opsstatus/Alleroed
A4: Assens | B4: https://www.danskindustri.dk/offentlig-privatsamarbejde/opsstatus/Assens
A5: Ballerup | B5: https://www.danskindustri.dk/offentlig-privatsamarbejde/opsstatus/Ballerup
A6: Billund | B6: https://www.danskindustri.dk/offentlig-privatsamarbejde/opsstatus/Billund
A7: Bornholm | B7: https://www.danskindustri.dk/offentlig-privatsamarbejde/opsstatus/Bornholm
A8: Brøndby | B8: https://www.danskindustri.dk/offentlig-privatsamarbejde/opsstatus/Broendby
A9: Brønderslev | B9: https://www.danskindustri.dk/offentlig-privatsamarbejde/opsstatus/Broenderslev
A10: Dragør | B10: https://www.danskindustri.dk/offentlig-privatsamarbejde/opsstatus/Dragoer
A11: Egedal | B11: https://www.danskindustri.dk/offentlig-privatsamarbejde/opsstatus/Egedal
A12: Esbjerg | B12: https://www.danskindustri.dk/offentlig-privatsamarbejde/opsstatus/Esbjerg
A13: Fanø | B13: https://www.danskindustri.dk/offentlig-privatsamarbejde/opsstatus/Fanoe
A14: Favrskov | B14: https://www.danskindustri.dk/offentlig-privatsamarbejde/opsstatus/Favrskov
A15: Faxe | B15: https://www.danskindustri.dk/offentlig-privatsamarbejde/opsstatus/Faxe
A16: Fredensborg | B16: https://www.danskindustri.dk/offentlig-privatsamarbejde/opsstatus/Fredensborg
A17: Fredericia | B17: https://www.danskindustri.dk/offentlig-privatsamarbejde/opsstatus/Fredericia
A18: Frederiksberg | B18: https://www.danskindustri.dk/offentlig-privatsamarbejde/opsstatus/Frederiksberg
A19: Frederikshavn | B19: https://www.danskindustri.dk/offentlig-privatsamarbejde/opsstatus/Frederikshavn
A20: Frederikssund | B20: https://www.danskindustri.dk/offentlig-privatsamarbejde/opsstatus/Frederikssund
A21: Furesø | B21: https://www.danskindustri.dk/offentlig-privatsamarbejde/opsstatus/Furesoe
A22: Faaborg-Midtfyn | B22: https://www.danskindustri.dk/offentlig-privatsamarbejde/opsstatus/Faaborg-Midtfyn
A23: Gentofte | B23: https://www.danskindustri.dk/offentlig-privatsamarbejde/opsstatus/Gentofte
A24: Gladsaxe | B24: https://www.danskindustri.dk/offentlig-privatsamarbejde/opsstatus/Gladsaxe
A25: Glostrup | B25: https://www.danskindustri.dk/offentlig-privatsamarbejde/opsstatus/Glostrup
A26: Greve | B26: https://www.danskindustri.dk/offentlig-privatsamarbejde/opsstatus/Greve
A27: Gribskov | B27: https://www.danskindustri.dk/offentlig-privatsamarbejde/opsstatus/Gribskov
A28: Guldborgsund | B28: https://www.danskindustri.dk/offentlig-privatsamarbejde/opsstatus/Guldborgsund
A29: Haderslev | B29: https://www.danskindustri.dk/offentlig-privatsamarbejde/opsstatus/Haderslev
A30: Halsnæs | B30: https://www.danskindustri.dk/offentlig-privatsamarbejde/opsstatus/Halsnaes
A31: Hedensted | B31: https://www.danskindustri.dk/offentlig-privatsamarbejde/opsstatus/Hedensted
A32: Helsingør | B32: https://www.danskindustri.dk/offentlig-privatsamarbejde/opsstatus/Helsingoer
A33: Herlev | B33: https://www.danskindustri.dk/offentlig-privatsamarbejde/opsstatus/Herlev
A34: Herning | B34: https://www.danskindustri.dk/offentlig-privatsamarbejde/opsstatus/Herning
A35: Hillerød | B35: https://www.danskindustri.dk/offentlig-privatsamarbejde/opsstatus/Hilleroed
A36: Hjørring | B36: https://www.danskindustri.dk/offentlig-privatsamarbejde/opsstatus/Hjoerring
A37: Holbæk | B37: https://www.danskindustri.dk/offentlig-privatsamarbejde/opsstatus/Holbaek
A38: Holstebro | B38: https://www.danskindustri.dk/offentlig-privatsamarbejde/opsstatus/Holstebro
A39: Horsens | B39: https://www.danskindustri.dk/offentlig-privatsamarbejde/opsstatus/Horsens
A40: Hvidovre | B40: https://www.danskindustri.dk/offentlig-privatsamarbejde/opsstatus/Hvidovre
A41: Høje-Taastrup | B41: https://www.danskindustri.dk/offentlig-privatsamarbejde/opsstatus/Hoeje-Taastrup
A42: Hørsholm | B42: https://www.danskindustri.dk/offentlig-privatsamarbejde/opsstatus/Hoersholm
A43: Ikast-Brande | B43: https://www.danskindustri.dk/offentlig-privatsamarbejde/opsstatus/Ikast-Brande
A44: Ishøj | B44: https://www.danskindustri.dk/offentlig-privatsamarbejde/opsstatus/Ishoej
A45: Jammerbugt | B45: https://www.danskindustri.dk/offentlig-privatsamarbejde/opsstatus/Jammerbugt
A46: Kalundborg | B46: https://www.danskindustri.dk/offentlig-privatsamarbejde/opsstatus/Kalundborg
A47: Kerteminde | B47: https://www.danskindustri.dk/offentlig-privatsamarbejde/opsstatus/Kerteminde
A48: Kolding | B48: https://www.danskindustri.dk/offentlig-privatsamarbejde/opsstatus/Kolding
A49: København | B49: https://www.danskindustri.dk/offentlig-privatsamarbejde/opsstatus/Koebenhavn
A50: Køge | B50: https://www.danskindustri.dk/offentlig-privatsamarbejde/opsstatus/Koege
A51: Langeland | B51: https://www.danskindustri.dk/offentlig-privatsamarbejde/opsstatus/Langeland
A52: Lejre | B52: https://www.danskindustri.dk/offentlig-privatsamarbejde/opsstatus/Lejre
A53: Lemvig | B53: https://www.danskindustri.dk/offentlig-privatsamarbejde/opsstatus/Lemvig
A54: Lolland | B54: https://www.danskindustri.dk/offentlig-privatsamarbejde/opsstatus/Lolland
A55: Lyngby-Taarbæk | B55: https://www.danskindustri.dk/offentlig-privatsamarbejde/opsstatus/Lyngby-Taarbaek
A56: Læsø | B56: https://www.danskindustri.dk/offentlig-privatsamarbejde/opsstatus/Laesoe
A57: Mariagerfjord | B57: https://www.danskindustri.dk/offentlig-privatsamarbejde/opsstatus/Mariagerfjord
A58: Middelfart | B58: https://www.danskindustri.dk/offentlig-privatsamarbejde/opsstatus/Middelfart
A59: Morsø | B59: https://www.danskindustri.dk/offentlig-privatsamarbejde/opsstatus/Morsoe
A60: Norddjurs | B60: https://www.danskindustri.dk/offentlig-privatsamarbejde/opsstatus/Norddjurs
A61: Nordfyn | B61: https://www.danskindustri.dk/offentlig-privatsamarbejde/opsstatus/Nordfyn
A62: Nyborg | B62: https://www.danskindustri.dk/offentlig-privatsamarbejde/opsstatus/Nyborg
A63: Næstved | B63: https://www.danskindustri.dk/offentlig-privatsamarbejde/opsstatus/Naestved
A64: Odder | B64: https://www.danskindustri.dk/offentlig-privatsamarbejde/opsstatus/Odder
A65: Odense | B65: https://www.danskindustri.dk/offentlig-privatsamarbejde/opsstatus/Odense
A66: Odsherred | B66: https://www.danskindustri.dk/offentlig-privatsamarbejde/opsstatus/Odsherred
A67: Randers | B67: https://www.danskindustri.dk/offentlig-privatsamarbejde/opsstatus/Randers
A68: Rebild | B68: https://www.danskindustri.dk/offentlig-privatsamarbejde/opsstatus/Rebild
A69: Ringkøbing-Skjern | B69: https://www.danskindustri.dk/offentlig-privatsamarbejde/opsstatus/Ringkoebing-Skjern
A70: Ringsted | B70: https://www.danskindustri.dk/offentlig-privatsamarbejde/opsstatus/Ringsted
A71: Roskilde | B71: https://www.danskindustri.dk/offentlig-privatsamarbejde/opsstatus/Roskilde
A72: Rudersdal | B72: https://www.danskindustri.dk/offentlig-privatsamarbejde/opsstatus/Rudersdal
A73: Rødovre | B73: https://www.danskindustri.dk/offentlig-privatsamarbejde/opsstatus/Roedovre
A74: Samsø | B74: https://www.danskindustri.dk/offentlig-privatsamarbejde/opsstatus/Samsoe
A75: Silkeborg | B75: https://www.danskindustri.dk/offentlig-privatsamarbejde/opsstatus/Silkeborg
A76: Skanderborg | B76: https://www.danskindustri.dk/offentlig-privatsamarbejde/opsstatus/Skanderborg
A77: Skive | B77: https://www.danskindustri.dk/offentlig-privatsamarbejde/opsstatus/Skive
A78: Slagelse | B78: https://www.danskindustri.dk/offentlig-privatsamarbejde/opsstatus/Slagelse
A79: Solrød | B79: https://www.danskindustri.dk/offentlig-privatsamarbejde/opsstatus/Solroed
A80: Sorø | B80: https://www.danskindustri.dk/offentlig-privatsamarbejde/opsstatus/Soroe
A81: Stevns | B81: https://www.danskindustri.dk/offentlig-privatsamarbejde/opsstatus/Stevns
A82: Struer | B82: https://www.danskindustri.dk/offentlig-privatsamarbejde/opsstatus/Struer
A83: Svendborg | B83: https://www.danskindustri.dk/offentlig-privatsamarbejde/opsstatus/Svendborg
A84: Syddjurs | B84: https://www.danskindustri.dk/offentlig-privatsamarbejde/opsstatus/Syddjurs
A85: Sønderborg | B85: https://www.danskindustri.dk/offentlig-privatsamarbejde/opsstatus/Soenderborg
A86: Thisted | B86: https://www.danskindustri.dk/offentlig-privatsamarbejde/opsstatus/Thisted
A87: Tønder | B87: https://www.danskindustri.dk/offentlig-privatsamarbejde/opsstatus/Toender
A88: Tårnby | B88: https://www.danskindustri.dk/offentlig-privatsamarbejde/opsstatus/Taarnby
A89: Vallensbæk | B89: https://www.danskindustri.dk/offentlig-privatsamarbejde/opsstatus/Vallensbaek
A90: Varde | B90: https://www.danskindustri.dk/offentlig-privatsamarbejde/opsstatus/Varde
A91: Vejen | B91: https://www.danskindustri.dk/offentlig-privatsamarbejde/opsstatus/Vejen
A92: Vejle | B92: https://www.danskindustri.dk/offentlig-privatsamarbejde/opsstatus/Vejle
A93: Vesthimmerland | B93: https://www.danskindustri.dk/offentlig-privatsamarbejde/opsstatus/Vesthimmerland
A94: Viborg | B94: https://www.danskindustri.dk/offentlig-privatsamarbejde/opsstatus/Viborg
A95: Vordingborg | B95: https://www.danskindustri.dk/offentlig-privatsamarbejde/opsstatus/Vordingborg
A96: Ærø | B96: https://www.danskindustri.dk/offentlig-privatsamarbejde/opsstatus/Aeroe
A97: Aabenraa | B97: https://www.danskindustri.dk/offentlig-privatsamarbejde/opsstatus/Aabenraa
A98: Aalborg | B98: https://www.danskindustri.dk/offentlig-privatsamarbejde/opsstatus/Aalborg
A99: Aarhus | B99: https://www.danskindustri.dk/offentlig-privatsamarbejde/opsstatus/Aarhus
